Workbook

Sheet Макрос
H2: =CalcMax(SplitData('Пул данных'!#REF!)) -> 

Sheet Пул данных
E2: Параметры | F2: декабрь 2023
B3: Трубопровод | C3: Цех | D3: участок | F3: 01.12.23 | G3: 02.12.23 | H3: 03.12.23 | I3: 04.12.23 | J3: 05.12.23 | K3: 06.12.23 | L3: 07.12.23
B5: Тагринская | C5: ТП-1 | D5: 407 | E5: Отработанное время | F5: 18 | G5: 18 | H5: 20 | I5: 17 | J5: 19 | K5: 19 | L5: 17
B6: Тагринская | C6: ТП-1 | D6: 407 | E6: Давление | F6: 22.3 39.1 15.2 22.9 15.8 21.2 8.6 15.7 9.5 | G6: 12.1 26.6 28.4 31 28.2 22.5 0.1 0.1 22.6 | H6: 8.1 0.1 0.1 0.9 30 0.8 30.2 28.9 30.3 0.8 0.8 0.8 0.8 0.8 0.8 0.8 0.8 0.8 0.8 0.8 | I6: 0.8 0.8 0.8 0.8 0.8 0.8 0.8 0.8 0.8 13 0.8 0.8 0.8 30.4 49.4 0.8 0.8 0.8 0.8 0.8 0.8 0.8 11.8 0.8 | J6: 0.8 0.8 0.8 0.8 0.8 0.8 0.8 0.8 0.8 0.8 0.8 0.8 0.8 0.8 0.8 0.8 0.8 0.8 32.2 30.3 31.9 28.9 | K6: 12.3 0.8 0.8 0.8 0.8 0.8 0.8 0.8 0.8 0.8 0.8 0.8 0.8 0.8 0.8 0.8 22.8 21.7 47.3 22 17.3 39.8 0.8 0.8 0.8 | L6: 2.9 0.8 0.8 0.8 0.8 0.8 0.8 0.8 0.8 0.8 0.8 0.8 0.8 0.8 11.7 0.8 0.8 0.8 0.8 0.8 0.8 0.8 0.8 0.8 0.8
B7: Тагринская | C7: ТП-1 | D7: 545 | E7: Отработанное время | F7: 24 | G7: 24 | H7: 24 | I7: 24 | J7: 24 | K7: 24 | L7: 24
B8: Тагринская | C8: ТП-1 | D8: 545 | E8: Давление | F8: 24 0.8 0.8 0.8 0.8 41.8 0.8 0.8 0.8 0.8 0.8 23 7.2 0.8 0.8 0.8 0.8 32 0.8 0.8 0.8 0.8 0.8 0.9 0.8 | G8: 0.8 0.8 0.8 36.8 0.8 0.8 0.8 0.8 0.8 0.8 0.8 0.8 0.8 0.8 36.8 0.8 0.8 0.8 0.8 5.6 0.8 0.8 0.8 0.8 0.8 | H8: 0.8 37.5 0.8 0.8 0.8 0.8 0.8 0.8 0.8 0.8 0.8 0.8 30.6 0.8 0.8 0.8 0.8 33.2 0.8 0.8 0.8 0.8 0.9 41.9 | I8: 0.8 0.8 6 0.8 0.8 0.8 0.8 0.8 0.8 0.8 0.8 30.6 0.8 0.8 0.8 0.8 39.4 0.8 8.3 0.8 0.8 0.8 0.8 0.8 0.8 0.8 | J8: 39 0.8 0.8 0.8 0.8 0.8 0.8 0.8 38.4 0.8 0.8 0.8 0.8 0.8 23.6 0.8 0.8 0.8 0.8 0.9 0.8 0.8 0.8 0.8 5.7 | K8: 0.8 0.8 0.8 0.8 0.8 39 0.8 0.8 0.8 0.8 0.8 0.8 0.8 33.4 0.8 0.8 0.8 0.8 0.8 0.8 0.8 0.8 0.8 0.8 | L8: 0.8 0.8 0.8 0.8 0.8 0.8 0.8 4.9 0.8 0.8 0.8 26.3 0.8 0.8 0.8 0.8 0.8 0.8 0.8 0.8 0.8 0.8 0.8 0.8 30.4
B9: Тагринская | C9: ТП-1 | D9: 2054 | E9: Отработанное время | F9: 8 | G9: 7 | H9: 8 | I9: 9 | J9: 8 | K9: 7 | L9: 7
B10: Тагринская | C10: ТП-1 | D10: 2054 | E10: Давление | F10: 42 42 17.2 42 41 42 41 43 45 | G10: 15.2 42 30 42 43 44 42 16.9 44 40 | H10: 41 42 44 40 15.8 43 43 41 41 40 43 43 | I10: 40 16.2 6 41 45 43 41 42 40 15.5 44 42 | J10: 12 41 42 42 43 14 17.5 41 4 39 41 40 41 | K10: 41 15.3 41 15 44 41 44 42 40 17.5 3 40 | L10: 11 42 42 17.3 44 40 42 43
B11: Тагринская | C11: ТП-1 | D11: 40074 | E11: Отработанное время | F11: 24 | G11: 24 | H11: 24 | I11: 24 | J11: 23 | K11: 24 | L11: 24
B12: Тагринская | C12: ТП-1 | D12: 40074 | E12: Давление | F12: 42.8 6.5 45 43.8 14.6 43.4 42.9 | G12: 43.7 43.6 43.5 43.7 43 46.7 43.4 41.8 | H12: 43.5 43.8 42.4 42.2 15.9 43.6 43.6 43.7 | I12: 42 44.5 44.3 43.2 41.5 | J12: 11.8 43.8 44.2 43.3 44.9 44.8 43.9 | K12: 43.7 44.3 44.4 44.1 16.8 44 | L12: 45.6 44.6 43.3 43.7 43.1 43.4 44.1 44.1
B13: Тагринская | C13: ТП-1 | D13: 40075 | E13: Отработанное время | F13: 8 | G13: 7 | H13: 8 | I13: 9 | J13: 8 | K13: 7 | L13: 7
B14: Тагринская | C14: ТП-1 | D14: 40075 | E14: Давление | F14: 39 37 39 38 38 37 38 37 38 38 39 39 37 38 28.4 40 39 39 37 | G14: 37 34 38 34 | H14: 25 37 38 37 37 37 35 22.2 | I14: 39 36 36 36 34 37 38 37 38 35 36 37 36 37 37 37 35 36 | J14: 37 | K14: 20.8 | L14: 36 35 34 32 38 40 37 38

Sheet Расчет
F2: 10
E4: Параметры | F4: декабрь 2023
B5: трубопровод | C5: Цех | D5: Участок | F5: 01.12.23 | G5: 02.12.23 | H5: 03.12.23 | I5: 04.12.23 | J5: 05.12.23 | K5: 06.12.23 | L5: 07.12.23
B7: Тагринская | C7: ТП-1 | D7: 407 | E7: Отработанное время | F7: =IF($E7="Давление",IF('Пул данных'!F4<Расчет!$F$2,MAX(--SplitData('Пул данных'!F5)),AVERAGE(--SplitData('Пул данных'!F5))),'Пул данных'!F5) -> 18 | G7: =IF($E7="Давление",IF('Пул данных'!G4<Расчет!$F$2,MAX(--SplitData('Пул данных'!G5)),AVERAGE(--SplitData('Пул данных'!G5))),'Пул данных'!G5) -> 18 | H7: =IF($E7="Давление",IF('Пул данных'!H4<Расчет!$F$2,MAX(--SplitData('Пул данных'!H5)),AVERAGE(--SplitData('Пул данных'!H5))),'Пул данных'!H5) -> 20 | I7: =IF($E7="Давление",IF('Пул данных'!I4<Расчет!$F$2,MAX(--SplitData('Пул данных'!I5)),AVERAGE(--SplitData('Пул данных'!I5))),'Пул данных'!I5) -> 17 | J7: =IF($E7="Давление",IF('Пул данных'!J4<Расчет!$F$2,MAX(--SplitData('Пул данных'!J5)),AVERAGE(--SplitData('Пул данных'!J5))),'Пул данных'!J5) -> 19 | K7: =IF($E7="Давление",IF('Пул данных'!K4<Расчет!$F$2,MAX(--SplitData('Пул данных'!K5)),AVERAGE(--SplitData('Пул данных'!K5))),'Пул данных'!K5) -> 19 | L7: =IF($E7="Давление",IF('Пул данных'!L4<Расчет!$F$2,MAX(--SplitData('Пул данных'!L5)),AVERAGE(--SplitData('Пул данных'!L5))),'Пул данных'!L5) -> 17
B8: Тагринская | C8: ТП-1 | D8: 407 | E8: Давление | F8: =IF($E8="Давление",IF('Пул данных'!F5<Расчет!$F$2,MAX(--SplitData('Пул данных'!F6)),AVERAGE(--SplitData('Пул данных'!F6))),'Пул данных'!F6) -> 18.92222222 | G8: =IF($E8="Давление",IF('Пул данных'!G5<Расчет!$F$2,MAX(--SplitData('Пул данных'!G6)),AVERAGE(--SplitData('Пул данных'!G6))),'Пул данных'!G6) -> 19.06666667 | H8: =IF($E8="Давление",IF('Пул данных'!H5<Расчет!$F$2,MAX(--SplitData('Пул данных'!H6)),AVERAGE(--SplitData('Пул данных'!H6))),'Пул данных'!H6) -> 6.91 | I8: =IF($E8="Давление",IF('Пул данных'!I5<Расчет!$F$2,MAX(--SplitData('Пул данных'!I6)),AVERAGE(--SplitData('Пул данных'!I6))),'Пул данных'!I6) -> 5.025 | J8: =IF($E8="Давление",IF('Пул данных'!J5<Расчет!$F$2,MAX(--SplitData('Пул данных'!J6)),AVERAGE(--SplitData('Пул данных'!J6))),'Пул данных'!J6) -> 6.259090909 | K8: =IF($E8="Давление",IF('Пул данных'!K5<Расчет!$F$2,MAX(--SplitData('Пул данных'!K6)),AVERAGE(--SplitData('Пул данных'!K6))),'Пул данных'!K6) -> 7.904 | L8: =IF($E8="Давление",IF('Пул данных'!L5<Расчет!$F$2,MAX(--SplitData('Пул данных'!L6)),AVERAGE(--SplitData('Пул данных'!L6))),'Пул данных'!L6) -> 1.32
B9: Тагринская | C9: ТП-1 | D9: 545 | E9: Отработанное время | F9: =IF($E9="Давление",IF('Пул данных'!F6<Расчет!$F$2,MAX(--SplitData('Пул данных'!F7)),AVERAGE(--SplitData('Пул данных'!F7))),'Пул данных'!F7) -> 24 | G9: =IF($E9="Давление",IF('Пул данных'!G6<Расчет!$F$2,MAX(--SplitData('Пул данных'!G7)),AVERAGE(--SplitData('Пул данных'!G7))),'Пул данных'!G7) -> 24 | H9: =IF($E9="Давление",IF('Пул данных'!H6<Расчет!$F$2,MAX(--SplitData('Пул данных'!H7)),AVERAGE(--SplitData('Пул данных'!H7))),'Пул данных'!H7) -> 24 | I9: =IF($E9="Давление",IF('Пул данных'!I6<Расчет!$F$2,MAX(--SplitData('Пул данных'!I7)),AVERAGE(--SplitData('Пул данных'!I7))),'Пул данных'!I7) -> 24 | J9: =IF($E9="Давление",IF('Пул данных'!J6<Расчет!$F$2,MAX(--SplitData('Пул данных'!J7)),AVERAGE(--SplitData('Пул данных'!J7))),'Пул данных'!J7) -> 24 | K9: =IF($E9="Давление",IF('Пул данных'!K6<Расчет!$F$2,MAX(--SplitData('Пул данных'!K7)),AVERAGE(--SplitData('Пул данных'!K7))),'Пул данных'!K7) -> 24 | L9: =IF($E9="Давление",IF('Пул данных'!L6<Расчет!$F$2,MAX(--SplitData('Пул данных'!L7)),AVERAGE(--SplitData('Пул данных'!L7))),'Пул данных'!L7) -> 24
B10: Тагринская | C10: ТП-1 | D10: 545 | E10: Давление | F10: =IF($E10="Давление",IF('Пул данных'!F7<Расчет!$F$2,MAX(--SplitData('Пул данных'!F8)),AVERAGE(--SplitData('Пул данных'!F8))),'Пул данных'!F8) -> 5.764 | G10: =IF($E10="Давление",IF('Пул данных'!G7<Расчет!$F$2,MAX(--SplitData('Пул данных'!G8)),AVERAGE(--SplitData('Пул данных'!G8))),'Пул данных'!G8) -> 3.872 | H10: =IF($E10="Давление",IF('Пул данных'!H7<Расчет!$F$2,MAX(--SplitData('Пул данных'!H8)),AVERAGE(--SplitData('Пул данных'!H8))),'Пул данных'!H8) -> 6.6375 | I10: =IF($E10="Давление",IF('Пул данных'!I7<Расчет!$F$2,MAX(--SplitData('Пул данных'!I8)),AVERAGE(--SplitData('Пул данных'!I8))),'Пул данных'!I8) -> 3.919230769 | J10: =IF($E10="Давление",IF('Пул данных'!J7<Расчет!$F$2,MAX(--SplitData('Пул данных'!J8)),AVERAGE(--SplitData('Пул данных'!J8))),'Пул данных'!J8) -> 4.944 | K10: =IF($E10="Давление",IF('Пул данных'!K7<Расчет!$F$2,MAX(--SplitData('Пул данных'!K8)),AVERAGE(--SplitData('Пул данных'!K8))),'Пул данных'!K8) -> 3.75 | L10: =IF($E10="Давление",IF('Пул данных'!L7<Расчет!$F$2,MAX(--SplitData('Пул данных'!L8)),AVERAGE(--SplitData('Пул данных'!L8))),'Пул данных'!L8) -> 3.168
B11: Тагринская | C11: ТП-1 | D11: 2054 | E11: Отработанное время | F11: =IF($E11="Давление",IF('Пул данных'!F8<Расчет!$F$2,MAX(--SplitData('Пул данных'!F9)),AVERAGE(--SplitData('Пул данных'!F9))),'Пул данных'!F9) -> 8 | G11: =IF($E11="Давление",IF('Пул данных'!G8<Расчет!$F$2,MAX(--SplitData('Пул данных'!G9)),AVERAGE(--SplitData('Пул данных'!G9))),'Пул данных'!G9) -> 7 | H11: =IF($E11="Давление",IF('Пул данных'!H8<Расчет!$F$2,MAX(--SplitData('Пул данных'!H9)),AVERAGE(--SplitData('Пул данных'!H9))),'Пул данных'!H9) -> 8 | I11: =IF($E11="Давление",IF('Пул данных'!I8<Расчет!$F$2,MAX(--SplitData('Пул данных'!I9)),AVERAGE(--SplitData('Пул данных'!I9))),'Пул данных'!I9) -> 9 | J11: =IF($E11="Давление",IF('Пул данных'!J8<Расчет!$F$2,MAX(--SplitData('Пул данных'!J9)),AVERAGE(--SplitData('Пул данных'!J9))),'Пул данных'!J9) -> 8 | K11: =IF($E11="Давление",IF('Пул данных'!K8<Расчет!$F$2,MAX(--SplitData('Пул данных'!K9)),AVERAGE(--SplitData('Пул данных'!K9))),'Пул данных'!K9) -> 7 | L11: =IF($E11="Давление",IF('Пул данных'!L8<Расчет!$F$2,MAX(--SplitData('Пул данных'!L9)),AVERAGE(--SplitData('Пул данных'!L9))),'Пул данных'!L9) -> 7
B12: Тагринская | C12: ТП-1 | D12: 2054 | E12: Давление | F12: =IF($E12="Давление",IF('Пул данных'!F9<Расчет!$F$2,MAX(--SplitData('Пул данных'!F10)),AVERAGE(--SplitData('Пул данных'!F10))),'Пул данных'!F10) -> 45 | G12: =IF($E12="Давление",IF('Пул данных'!G9<Расчет!$F$2,MAX(--SplitData('Пул данных'!G10)),AVERAGE(--SplitData('Пул данных'!G10))),'Пул данных'!G10) -> 44 | H12: =IF($E12="Давление",IF('Пул данных'!H9<Расчет!$F$2,MAX(--SplitData('Пул данных'!H10)),AVERAGE(--SplitData('Пул данных'!H10))),'Пул данных'!H10) -> 44 | I12: =IF($E12="Давление",IF('Пул данных'!I9<Расчет!$F$2,MAX(--SplitData('Пул данных'!I10)),AVERAGE(--SplitData('Пул данных'!I10))),'Пул данных'!I10) -> 45 | J12: =IF($E12="Давление",IF('Пул данных'!J9<Расчет!$F$2,MAX(--SplitData('Пул данных'!J10)),AVERAGE(--SplitData('Пул данных'!J10))),'Пул данных'!J10) -> 43 | K12: =IF($E12="Давление",IF('Пул данных'!K9<Расчет!$F$2,MAX(--SplitData('Пул данных'!K10)),AVERAGE(--SplitData('Пул данных'!K10))),'Пул данных'!K10) -> 44 | L12: =IF($E12="Давление",IF('Пул данных'!L9<Расчет!$F$2,MAX(--SplitData('Пул данных'!L10)),AVERAGE(--SplitData('Пул данных'!L10))),'Пул данных'!L10) -> 44
B13: Тагринская | C13: ТП-1 | D13: 40074 | E13: Отработанное время | F13: =IF($E13="Давление",IF('Пул данных'!F10<Расчет!$F$2,MAX(--SplitData('Пул данных'!F11)),AVERAGE(--SplitData('Пул данных'!F11))),'Пул данных'!F11) -> 24 | G13: =IF($E13="Давление",IF('Пул данных'!G10<Расчет!$F$2,MAX(--SplitData('Пул данных'!G11)),AVERAGE(--SplitData('Пул данных'!G11))),'Пул данных'!G11) -> 24 | H13: =IF($E13="Давление",IF('Пул данных'!H10<Расчет!$F$2,MAX(--SplitData('Пул данных'!H11)),AVERAGE(--SplitData('Пул данных'!H11))),'Пул данных'!H11) -> 24 | I13: =IF($E13="Давление",IF('Пул данных'!I10<Расчет!$F$2,MAX(--SplitData('Пул данных'!I11)),AVERAGE(--SplitData('Пул данных'!I11))),'Пул данных'!I11) -> 24 | J13: =IF($E13="Давление",IF('Пул данных'!J10<Расчет!$F$2,MAX(--SplitData('Пул данных'!J11)),AVERAGE(--SplitData('Пул данных'!J11))),'Пул данных'!J11) -> 23 | K13: =IF($E13="Давление",IF('Пул данных'!K10<Расчет!$F$2,MAX(--SplitData('Пул данных'!K11)),AVERAGE(--SplitData('Пул данных'!K11))),'Пул данных'!K11) -> 24 | L13: =IF($E13="Давление",IF('Пул данных'!L10<Расчет!$F$2,MAX(--SplitData('Пул данных'!L11)),AVERAGE(--SplitData('Пул данных'!L11))),'Пул данных'!L11) -> 24
B14: Тагринская | C14: ТП-1 | D14: 40074 | E14: Давление | F14: =IF($E14="Давление",IF('Пул данных'!F11<Расчет!$F$2,MAX(--SplitData('Пул данных'!F12)),AVERAGE(--SplitData('Пул данных'!F12))),'Пул данных'!F12) -> 34.14285714 | G14: =IF($E14="Давление",IF('Пул данных'!G11<Расчет!$F$2,MAX(--SplitData('Пул данных'!G12)),AVERAGE(--SplitData('Пул данных'!G12))),'Пул данных'!G12) -> 43.675 | H14: =IF($E14="Давление",IF('Пул данных'!H11<Расчет!$F$2,MAX(--SplitData('Пул данных'!H12)),AVERAGE(--SplitData('Пул данных'!H12))),'Пул данных'!H12) -> 39.8375 | I14: =IF($E14="Давление",IF('Пул данных'!I11<Расчет!$F$2,MAX(--SplitData('Пул данных'!I12)),AVERAGE(--SplitData('Пул данных'!I12))),'Пул данных'!I12) -> 43.1 | J14: =IF($E14="Давление",IF('Пул данных'!J11<Расчет!$F$2,MAX(--SplitData('Пул данных'!J12)),AVERAGE(--SplitData('Пул данных'!J12))),'Пул данных'!J12) -> 39.52857143 | K14: =IF($E14="Давление",IF('Пул данных'!K11<Расчет!$F$2,MAX(--SplitData('Пул данных'!K12)),AVERAGE(--SplitData('Пул данных'!K12))),'Пул данных'!K12) -> 39.55 | L14: =IF($E14="Давление",IF('Пул данных'!L11<Расчет!$F$2,MAX(--SplitData('Пул данных'!L12)),AVERAGE(--SplitData('Пул данных'!L12))),'Пул данных'!L12) -> 43.9875
B15: Тагринская | C15: ТП-1 | D15: 40075 | E15: Отработанное время | F15: =IF($E15="Давление",IF('Пул данных'!F12<Расчет!$F$2,MAX(--SplitData('Пул данных'!F13)),AVERAGE(--SplitData('Пул данных'!F13))),'Пул данных'!F13) -> 8 | G15: =IF($E15="Давление",IF('Пул данных'!G12<Расчет!$F$2,MAX(--SplitData('Пул данных'!G13)),AVERAGE(--SplitData('Пул данных'!G13))),'Пул данных'!G13) -> 7 | H15: =IF($E15="Давление",IF('Пул данных'!H12<Расчет!$F$2,MAX(--SplitData('Пул данных'!H13)),AVERAGE(--SplitData('Пул данных'!H13))),'Пул данных'!H13) -> 8 | I15: =IF($E15="Давление",IF('Пул данных'!I12<Расчет!$F$2,MAX(--SplitData('Пул данных'!I13)),AVERAGE(--SplitData('Пул данных'!I13))),'Пул данных'!I13) -> 9 | J15: =IF($E15="Давление",IF('Пул данных'!J12<Расчет!$F$2,MAX(--SplitData('Пул данных'!J13)),AVERAGE(--SplitData('Пул данных'!J13))),'Пул данных'!J13) -> 8 | K15: =IF($E15="Давление",IF('Пул данных'!K12<Расчет!$F$2,MAX(--SplitData('Пул данных'!K13)),AVERAGE(--SplitData('Пул данных'!K13))),'Пул данных'!K13) -> 7 | L15: =IF($E15="Давление",IF('Пул данных'!L12<Расчет!$F$2,MAX(--SplitData('Пул данных'!L13)),AVERAGE(--SplitData('Пул данных'!L13))),'Пул данных'!L13) -> 7
B16: Тагринская | C16: ТП-1 | D16: 40075 | E16: Давление | F16: =IF($E16="Давление",IF('Пул данных'!F13<Расчет!$F$2,MAX(--SplitData('Пул данных'!F14)),AVERAGE(--SplitData('Пул данных'!F14))),'Пул данных'!F14) -> 40 | G16: =IF($E16="Давление",IF('Пул данных'!G13<Расчет!$F$2,MAX(--SplitData('Пул данных'!G14)),AVERAGE(--SplitData('Пул данных'!G14))),'Пул данных'!G14) -> 38 | H16: =IF($E16="Давление",IF('Пул данных'!H13<Расчет!$F$2,MAX(--SplitData('Пул данных'!H14)),AVERAGE(--SplitData('Пул данных'!H14))),'Пул данных'!H14) -> 38 | I16: =IF($E16="Давление",IF('Пул данных'!I13<Расчет!$F$2,MAX(--SplitData('Пул данных'!I14)),AVERAGE(--SplitData('Пул данных'!I14))),'Пул данных'!I14) -> 39 | J16: =IF($E16="Давление",IF('Пул данных'!J13<Расчет!$F$2,MAX(--SplitData('Пул данных'!J14)),AVERAGE(--SplitData('Пул данных'!J14))),'Пул данных'!J14) -> 37 | K16: =IF($E16="Давление",IF('Пул данных'!K13<Расчет!$F$2,MAX(--SplitData('Пул данных'!K14)),AVERAGE(--SplitData('Пул данных'!K14))),'Пул данных'!K14) -> 20.8 | L16: =IF($E16="Давление",IF('Пул данных'!L13<Расчет!$F$2,MAX(--SplitData('Пул данных'!L14)),AVERAGE(--SplitData('Пул данных'!L14))),'Пул данных'!L14) -> 40
